Workbook

Sheet charges sociales
B2: Tableau général des charges sociales
B4: CHARGES | C4: TAUX | E4: TOTAL | F4: Assiette
C5: EMPLOYEUR | D5: SALARIE
B6: 1. CSG - non déductible (1) | D6: 0.024 | E6: 0.024 | F6: (Rémunération brute totale X 98,25 %) + cotisation patronale prévoyance 0,91 %
B7: CSG - déductible | D7: 0.051 | E7: 0.051
B8: 2. CRDS - non déductible | D8: 0.005 | E8: 0.005
B9: 3. CONTRIBUTION SOLIDARITE AUTONOMIE | C9: 0.003 | E9: 0.003 | F9: Rémunération totale
B10: 4. SECURITE SOCIALE (2)
B11: ▶ Assurance maladie, maternité, décès : - ensemble des départements
B12: - Moselle, Bas-Rhin, Haut-Rhin | C12: 0.131 | D12: 0.0225 | E12: =SUM(C12:D12) -> 0.1535 | F12: Rémunération totale
B13: ▶ Assurance vieillesse - plafonnée | C13: 0.084 | D13: 0.0675 | E13: =SUM(C13:D13) -> 0.1515 | F13: < 3086
B14: ▶ Assurance vieillesse - déplafonnée | C14: 0.016 | D14: 0.001 | E14: =SUM(C14:D14) -> 0.017 | F14: Rémunération totale
B15: ▶ Allocations familiales | C15: 0.054 | E15: =SUM(C15:D15) -> 0.054 | F15: Rémunération totale
B16: ▶ Accidents du travail : | C16: 0.016 | D16: 0 | E16: =SUM(C16:D16) -> 0.016 | F16: Rémunération totale
B17: 5. RETRAITE COMPLEMENTAIRE
B18: cadre et non cadre CBTP (AFPA) | C18: 0.0525 | D18: 0.0475 | E18: =SUM(C18:D18) -> 0.1 | F18: Rémunération totale
B19: ▶ AGFF (cotisation à l'association de gestion du fonds de financement de l'AGIRC et de l'ARRCO)
B20: cadres et Non-cadres Tranche 1 (T1) ou A | C20: 0.012 | D20: 0.008 | E20: =+SUM(C20:D20) -> 0.02 | F20: 0-3086
B21: cadres et Non-cadres Tranche 2 (T2) ou B | C21: 0.013 | D21: 0.009 | E21: =+SUM(C21:D21) -> 0.022 | F21: de 3 086 € à 12 344 €
B22: 6. PREVOYANCE (APGIS)
B23: Tranche A | C23: 0.01716 | D23: 0.00924 | E23: =SUM(C23:D23) -> 0.0264 | F23: 3086
B24: Tranche B | C24: 0.02269 | D24: 0.01711 | E24: =SUM(C24:D24) -> 0.0398 | F24: 12344
B25: 7. TAXE PREVOYANCE (contributions patronales de prévoyance) | C25: 0.08 | E25: 0.08 | F25: Montant des contributions patronales de prévoyance
B26: 8. CHOMAGE-EMPLOI
B27: ▶ Assurance chômage | C27: 0.04 | D27: 0.024 | E27: =SUM(C27:D27) -> 0.064 | F27: <12344
B28: ▶ Fonds de garantie des salaires (AGS) | C28: 0.003 | E28: =SUM(C28:D28) -> 0.003 | F28: <12344
B29: ▶ APEC (cadres) tranches A et B | C29: 0.00036 | D29: 0.00024 | E29: =SUM(C29:D29) -> 0.0006 | F29: de 0 à 12 344 €
B30: 9. CONSTRUCTION-LOGEMENT
B31: ▶ cotisation de base | C31: 0.001 | D31: 0 | E31: =SUM(C31:D31) -> 0.001 | F31: 0-3086
B32: ▶ Participation des employeurs à la construction ( plus de 20 salariés)
B33: + cotisation supplémentaire pour les cabinets de 20 salariés et plus : | C33: 0.004 | D33: 0 | E33: 0.004 | F33: 0-3086
B34: + cotisation supplémentaire pour les cabinets de 20 salariés et plus : | C34: 0.001 | D34: 0 | E34: 0.001 | F34: à partir de 3 086 €
B35: 10. FORMATION PROFESSIONNELLE (OPCA-PL)
B36: ▶ moins de 10 salariés | C36: 0.0055 | D36: 0 | E36: =+SUM(C36:D36) -> 0.0055 | F36: Rémunération totale
B37: ▶ de 10 à 19 salariés | C37: 0.0105 | D37: 0 | E37: 0.0105 | F37: Rémunération totale
B38: ▶ 20 salariés et plus | C38: 0.016 | D38: 0 | E38: 0.016 | F38: Rémunération totale
B39: 11. ▶ Participation supplémentaire formation continue CIF/CDD | C39: 0.01 | D39: 0 | E39: 0.01 | F39: Rémunération des salariés sous CDD *
B40: 12. Contribution au développement de l'apprentissage | C40: 0.0018 | D40: 0 | E40: 0.0018 | F40: Rémunération totale
B41: 13.Taxe d'apprentissage (alsace-moselle) | C41: 0.0026 | D41: 0 | E41: 0.0026 | F41: Rémunération totale
B42: 14. Participation construction (>20 salariés) | C42: 0.0045 | D42: 0 | E42: 0.0045 | F42: Rémunération totale
B43: 15. TAXE SUR LES SALAIRES | C43: 0.0425 | D43: 0 | E43: 0.0425 | F43: 7604
B44: (Entreprises non assujettis à la TVA) | C44: 0.085 | D44: 0 | E44: 0.085 | F44: 15185
B45: (assiette annuelle) | C45: 0.136 | D45: 0 | E45: 0.136 | F45: 150000
C46: 0.2 | D46: 0 | E46: 0.2 | F46: 1 50 000
B47: 16.Versement transport (entreprise > 9 salariés)
B48: strasbourg | C48: 0.02 | D48: 0 | E48: =SUM(C48:D48) -> 0.02 | F48: Totalité du salaire
B49: Mulhouse | C49: 0.018 | D49: 0 | E49: =SUM(C49:D49) -> 0.018
B50: colmar | C50: 0.006 | D50: 0 | E50: =SUM(C50:D50) -> 0.006
B51: Cernay | C51: 0 | D51: 0 | E51: =SUM(C51:D51) -> 0
B52: Soulce | C52: 0 | D52: 0 | E52: =SUM(C52:D52) -> 0
B57: U.R.S.S.A.F
B58: - Moselle, Bas-Rhin, Haut-Rhin | C58: 0.128 | F58: Rémunération totale
B59: ▶ Assurance vieillesse - plafonnée | C59: 0.084 | F59: < 3086
B60: ▶ Assurance vieillesse - déplafonnée | C60: 0.016 | F60: Rémunération totale
B61: ▶ Allocations familiales | C61: 0.054 | F61: Rémunération totale
B62: ▶ Accidents du travail : | C62: 0.03 | F62: Rémunération totale
B63: 9. CONSTRUCTION-LOGEMENT
B64: ▶ cotisation de base | C64: 0.001 | D64: 0 | E64: =SUM(C64:D64) -> 0.001 | F64: 0-3086
B65: ▶ Participation des employeurs à la construction ( plus de 20 salariés)
B66: + cotisation supplémentaire pour les cabinets de 20 salariés et plus : | C66: 0.004 | D66: 0 | E66: 0.004 | F66: 0-3086
B67: + cotisation supplémentaire pour les cabinets de 20 salariés et plus : | C67: 0.001 | D67: 0 | E67: 0.001 | F67: à partir de 3 086 €
B68: 3. CONTRIBUTION SOLIDARITE AUTONOMIE | C68: 0.003 | E68: 0.003 | F68: Rémunération totale
B69: ▶ Accidents du travail : | C69: 0.03 | D69: 0 | E69: =SUM(C69:D69) -> 0.03 | F69: Rémunération totale
B70: 16.Versement transport (entreprise > 9 salariés)
B71: strasbourg | C71: 0.02 | D71: 0 | E71: =SUM(C71:D71) -> 0.02 | F71: Totalité du salaire
B72: Mulhouse | C72: 0.018 | D72: 0 | E72: =SUM(C72:D72) -> 0.018
B73: colmar | C73: 0.006 | D73: 0 | E73: =SUM(C73:D73) -> 0.006
B74: Cernay | C74: 0 | D74: 0 | E74: =SUM(C74:D74) -> 0
B75: Soulce | C75: 0 | D75: 0 | E75: =SUM(C75:D75) -> 0
B76: 7. TAXE PREVOYANCE (contributions patronales de prévoyance) | C76: 0.08 | E76: 0.08 | F76: Montant des contributions patronales de prévoyance
B78: ASSEDIC
B79: ▶ Assurance chômage | C79: 0.04 | D79: 0.024 | E79: =SUM(C79:D79) -> 0.064 | F79: <12344
B80: ▶ Fonds de garantie des salaires (AGS) | C80: 0.003 | E80: =SUM(C80:D80) -> 0.003 | F80: <12344
B83: salaire brut | C83: salaire brut | D83: salaire brut | E83: salaire brut | F83: salaire brut | G83: salaire brut | H83: salaire brut | I83: salaire brut | J83: salaire brut | K83: Tranche A | L83: Tranche B | M83: Tranche A et B | N83: tranche A et B | O83: salaire brut | P83: salaire brut | Q83: la base est égale au plafond S.S. si salaire brut > plafond S.S., sinon = salaire brut | R83: A+B+C | T83: salaire brut | U83: salaire brut | V83: salaire brut | W83: salaire brut | AA83: 7604 | AB83: 15185 | AC83: 150000 | AD83: 150000 | AF83: NET IMPOSABLE | AG83: La base est égale au salaire brut augmenté des cotisations patronales de prévoyance (G45), le tout multiplié par 97%
B84: 0.131 | C84: 0.03 | D84: 0.054 | E84: 0.016 | F84: 0.084 | G84: 0.01 | H84: 0.003 | I84: 0.001 | J84: 0.004 | K84: 0.01716 | L84: 0.02269 | M84: 0.04 | N84: 0.003 | O84: 0.0525 | P84: 0.012 | Q84: 0.013 | R84: 0.0022 | S84: 0.00036 | T84: 0.0018 | U84: 0.0026 | V84: 0.016 | W84: 0.0045 | X84: Total charges | Y84: Total | Z84: total base csg | AA84: =4.25%/12 -> 0.003541666667 | AB84: =8.5%/12 -> 0.007083333333 | AC84: =13.6%/12 -> 0.01133333333 | AD84: =20%/12 -> 0.01666666667

Sheet Détails
A2: année
A3: 2013
A4: mois
A5: 1
A6: jour
A7: 2013-03-01 | B7: date | C7: =DATE(A3,A5,TEXT(A7,"j")) -> 2013-01-01
A10: Matricule | B10: Nom usuel | C10: Prénom | D10: Sexe | E10: CNC | F10: Date nai. | G10: Date de retraite (64ans) | H10: Retraite | I10: N° SS | J10: Régime SS | K10: Libellé régime SS | L10: Centre rés. | M10: Centre coût | N10: Centre de coût | O10: Type contrat | P10: Date début période d'essai | Q10: Date fin période d'essai | R10: Date fin renouvellement période d'essai | S10: Date début contrat | T10: Date fin init. | U10: Date de prolongation contrat | V10: Motif recours contrat | W10: Libellé motif recours | X10: Date entrée | Y10: Motif entrée | Z10: Libellé motif entrée | AA10: Motif de situation | AB10: Libellé motif de situation | AC10: Date sortie | AD10: Motif sortie | AE10: Libellé motif sortie | AF10: Date ancienneté | AG10: ancienneté | AH10: ancienneté en année(arr sup) | AI10: Horaire | AJ10: Date effet ho. | AK10: Motif absence | AL10: Libellé motif absence | AM10: Suspension co. | AN10: Date début suspension | AO10: Date fin suspension | AP10: Dossier paie | AQ10: AIB du mois | AR10: ETP rémunéré | AS10: AIB réel | AT10: AIB temps plein | AU10: Prime exp. | AV10: Garantie du net | AW10: 13 ème mois | AX10: Indemnité de fin de carrière | AY10: Salaire brut | AZ10: Brut | BA10: A | BB10: B | BC10: C | BD10: E | BE10: f | BF10: g | BG10: h | BH10: i | BI10: j | BJ10: k | BK10: l | BL10: m | BM10: n | BN10: o | BO10: p | BP10: q | BQ10: r | BR10: s | BS10: t | BT10: u | BU10: v | BV10: w | BW10: Somme | BX10: Total | BY10: BASE | BZ10: TAXE | CA10: TAXE | CB10: TAXE | CC10: TAXE 4 | CD10: z | CE10: somme | CF10: MS | CH10: Charges | CI10: IJSS nettes | CJ10: IJSS brutes | CK10: IJ prévoyance | CL10: indemnités de licenciement/fin contrat | CM10: indemnité de précarité | CN10: Indemnités journalières de congés payés
A11: 15635 | B11: Nom1 | C11: Prénom 1 | D11: 1 | E11: Cadre | F11: 1949-08-06 | G11: =EDATE(F11,64*12) -> 2013-08-06 | H11: =IF(Détails!$O11="DD","",IF(AND(YEAR(G11)<=$A$3,Détails!$O11="DI",$A$5=(MONTH(G11)-1)),"retraite ce mois","actif")) -> actif | I11: 56915popo365 | J11: 1 | K11: NON COTISANT | L11: 1 | M11: 67000 | N11: =VALUE(M11) -> 67000 | O11: DI | S11: 1997-09-01 | X11: 1992-07-01 | Y11: 1 | Z11: Nouvelle entrée | AA11: 1 | AB11: Entrée CDI ou CDD | AF11: 1992-08-01 | AG11: =DATEDIF(AF11,TODAY(),"y")&" ans "&DATEDIF(AF11,TODAY(),"ym")&" mois "&DATEDIF(AF11,TODAY(),"md")&" jours " -> 20 ans 9 mois 1 jours | AH11: =(ROUNDUP((TODAY()-AF11)/365.25*4,0))/4 -> 21 | AI11: 35 | AJ11: 2000-01-01 | AM11: 0 | AP11: 1 | AQ11: 5069.61 | AR11: 1 | AS11: 35000 | AT11: 35000 | AU11: 0 | AW11: =IF(OR($A$5=3,$A$5=6,$A$5=9,$A$5=12),SUM(AS11,#REF!,AU11)/4,0) -> 0 | AX11: =IF(OR(H11="actif",H11=""),0,MAX((13*AH11*(SUM(AQ11,AU11))/60),(13*(SUM(AQ11,#REF!,AU11))/4))) -> 0 | AY11: =AZ11+AW11 -> 8000 | AZ11: 8000 | BA11: =AY11*'charges sociales'!$B$84 -> 1048 | BB11: =AY11*'charges sociales'!$C$84 -> 240 | BC11: =$AY11*'charges sociales'!D$84 -> 432 | BD11: =IF($AY11>trancheA,($AY11-trancheA)*'charges sociales'!E$84,0) -> 78.624 | BE11: =IF($AY11<trancheA,$AY11*'charges sociales'!F$84,trancheA*'charges sociales'!F$84) -> 259.224 | BF11: =IF(OR(N11=67000,N11=67010),$AY11*2%,IF(N11=68012,$AY11*1.8%,$AY11*0.6%)) -> 160 | BG11: =$AY11*'charges sociales'!H$84 -> 24 | BH11: =$AY11*'charges sociales'!I$84 -> 8 | BI11: =$AY11*'charges sociales'!J$84 -> 32 | BJ11: =IF(AY11>trancheA, trancheA*prévoyance1,AY11*prévoyance1) -> 52.95576 | BK11: =IF(AY11>trancheA,(AY11-trancheA)*prévoyance2,0) -> 111.49866 | BL11: =IF($AY11<12124,$AY11*'charges sociales'!M$84,'charges sociales'!M$84*12124) -> 320 | BM11: =IF($AY11<TrancheB,$AY11*'charges sociales'!N$84,'charges sociales'!N$84*TrancheB) -> 24 | BN11: =$AY11*'charges sociales'!O$84 -> 420 | BO11: =IF($AY11>trancheA, trancheA*retraite1,$AY11*retraite1) -> 37.032 | BP11: =IF($AY11>trancheA,(AY11-trancheA)*retraite2,0) -> 63.882 | BQ11: =$AY11*'charges sociales'!R$84 -> 17.6 | BR11: =$AY11*'charges sociales'!S$84 -> 2.88 | BS11: =$AY11*'charges sociales'!T$84 -> 14.4 | BT11: =$AY11*'charges sociales'!U$84 -> 20.8 | BU11: =$AY11*'charges sociales'!V$84 -> 128 | BV11: =$AY11*'charges sociales'!W$84 -> 36 | BW11: =SUM(BA11:BV11) -> 3530.89642 | BX11: =SUM(BW11,AY11) -> 11530.89642 | BY11: =AY11+BJ11+BK11 -> 8164.45442 | BZ11: =IF($BY11*12<'charges sociales'!AA$83,($BY11*'charges sociales'!AA$84),'charges sociales'!AA$83*'charges sociales'!AA$84) -> 26.93083333 | CA11: =IF($BY11*12>'charges sociales'!AB$83,('charges sociales'!AB$83-'charges sociales'!AA$83)*'charges sociales'!AB$84,IF(AND($BY11*12<'charges sociales'!AB$83,$BY11*12>'charges sociales'!AA$83),($BY11*12-'charges sociales'!AA$83)*'charges sociales'!AB$84,0)) -> 53.69875 | CB11: =IF(AND($BY11*12>'charges sociales'!$F$44,$BY11*12<'charges sociales'!$F$45),($BY11*12-'charges sociales'!$F$44)*taxe3/12,IF($BY11*12>'charges sociales'!$F$45,(('charges sociales'!$F$45-'charges sociales'!$F$44)*taxe3/12),0)) -> 938.2691345 | CC11: =IF($BY11*12>'charges sociales'!AD$83,($BY11*12-'charges sociales'!AC$83)*'charges sociales'!AD$84,('charges sociales'!AD$83-'charges sociales'!AC$83)*'charges sociales'!AD$84) -> 0 | CD11: =8%*SUM(BJ11:BK11) -> 13.1563536 | CE11: =SUM(BW11,BZ11:CD11) -> 4562.951491 | CF11: =SUM(CE11,AY11,CM11)-(CK11+CL11) -> 12562.95149 | CG11: =(AY11+BJ11+BK11)*0.97 -> 7919.520787 | CH11: -2715.55 | CI11: 320 | CJ11: 350 | CK11: 0
A12: 1536 | B12: Nom2 | C12: Prénom 2 | D12: 1 | E12: non Cadre | F12: 1949-02-01 | G12: 2013-02-01 | H12: =IF(Détails!$O12="DD","",IF(AND(YEAR(G12)<=$A$3,Détails!$O12="DI",$A$5=(MONTH(G12)-1)),"retraite ce mois","actif")) -> retraite ce mois | I12: 8962popo | J12: 1 | K12: général | M12: 67200 | N12: =VALUE(M12) -> 67200 | O12: DI | AA12: 1 | AB12: Entrée CDI ou CDD | AF12: 1988-08-02 | AG12: 24 ans 9 mois 0 jours | AH12: 24.75 | AI12: 35 | AJ12: 1988-01-02 | AP12: 2 | AQ12: 4000 | AR12: 1 | AS12: 4000 | AT12: 4000 | AU12: 150 | AV12: 0 | AW12: =IF(OR($A$5=3,$A$5=6,$A$5=9,$A$5=12),SUM(AS12,#REF!,AU12)/4,0) -> 0 | AX12: =IF(OR(H12="actif",H12=""),0,MAX((13*AH12*(SUM(AQ12,AU12))/60),(13*(SUM(AQ12,AU12))/4))) -> 22254.375 | AY12: 7000 | AZ12: 7000 | BB12: =AY12*'charges sociales'!$C$84 -> 210 | BC12: =$AY12*'charges sociales'!D$84 -> 378 | BD12: =IF($AY12>trancheA,($AY12-trancheA)*'charges sociales'!E$84,0) -> 62.624 | BE12: =IF($AY12<trancheA,$AY12*'charges sociales'!F$84,trancheA*'charges sociales'!F$84) -> 259.224 | BF12: =IF(OR(N12=67000,N12=67010),$AY12*2%,IF(N12=68012,$AY12*1.8%,$AY12*0.6%)) -> 42 | BG12: =$AY12*'charges sociales'!H$84 -> 21 | BH12: =$AY12*'charges sociales'!I$84 -> 7 | BI12: =$AY12*'charges sociales'!J$84 -> 28 | BJ12: =IF(AY12>trancheA, trancheA*prévoyance1,AY12*prévoyance1) -> 52.95576 | BK12: =IF(AY12>trancheA,(AY12-trancheA)*prévoyance2,0) -> 88.80866 | BL12: =IF($AY12<12124,$AY12*'charges sociales'!M$84,'charges sociales'!M$84*12124) -> 280 | BM12: =IF($AY12<TrancheB,$AY12*'charges sociales'!N$84,'charges sociales'!N$84*TrancheB) -> 21 | BN12: =$AY12*'charges sociales'!O$84 -> 367.5 | BO12: =IF($AY12>trancheA, trancheA*retraite1,$AY12*retraite1) -> 37.032 | BP12: =IF($AY12>trancheA,(AY12-trancheA)*retraite2,0) -> 50.882 | BQ12: =$AY12*'charges sociales'!R$84 -> 15.4 | BR12: =$AY12*'charges sociales'!S$84 -> 2.52 | BS12: =$AY12*'charges sociales'!T$84 -> 12.6 | BT12: =$AY12*'charges sociales'!U$84 -> 18.2 | BU12: =$AY12*'charges sociales'!V$84 -> 112 | BV12: =$AY12*'charges sociales'!W$84 -> 31.5 | BW12: =SUM(BA12:BV12) -> 2098.24642 | BX12: =SUM(BW12,AY12) -> 9098.24642 | BY12: =AY12+BJ12+BK12 -> 7141.76442 | BZ12: =IF($BY12*12<'charges sociales'!AA$83,($BY12*'charges sociales'!AA$84),'charges sociales'!AA$83*'charges sociales'!AA$84) -> 26.93083333 | CA12: =IF($BY12*12>'charges sociales'!AB$83,('charges sociales'!AB$83-'charges sociales'!AA$83)*'charges sociales'!AB$84,IF(AND($BY12*12<'charges sociales'!AB$83,$BY12*12>'charges sociales'!AA$83),($BY12*12-'charges sociales'!AA$83)*'charges sociales'!AB$84,0)) -> 53.69875 | CB12: =IF(AND($BY12*12>'charges sociales'!$F$44,$BY12*12<'charges sociales'!$F$45),($BY12*12-'charges sociales'!$F$44)*taxe3/12,IF($BY12*12>'charges sociales'!$F$45,(('charges sociales'!$F$45-'charges sociales'!$F$44)*taxe3/12),0)) -> 799.1832945 | CC12: =IF($BY12*12>'charges sociales'!AD$83,($BY12*12-'charges sociales'!AC$83)*'charges sociales'!AD$84,('charges sociales'!AD$83-'charges sociales'!AC$83)*'charges sociales'!AD$84) -> 0 | CD12: =8%*SUM(BJ12:BK12) -> 11.3411536 | CE12: =SUM(BW12,BZ12:CD12) -> 2989.400451 | CF12: =SUM(CE12,AY12,CM12)-(CK12+CL12) -> 9989.400451 | CG12: =(AY12+BJ12+BK12)*0.97 -> 6927.511487 | CH12: -2715.55 | CI12: 340 | CJ12: 0 | CK12: 0
A13: 1537 | B13: Nom3 | C13: Prénom 3 | D13: 2 | E13: non Cadre | F13: 1970-02-02 | G13: =EDATE(F13,64*12) -> 2034-02-02 | H13: =IF(Détails!$O13="DD","",IF(AND(YEAR(G13)<=$A$3,Détails!$O13="DI",$A$5=(MONTH(G13)-1)),"retraite ce mois","actif")) -> actif | I13: 15636589 | J13: 2 | K13: général | M13: 67200 | N13: =VALUE(M13) -> 67200 | O13: DI | X13: 1987-05-01 | AA13: 1 | AB13: Entrée CDI ou CDD | AC13: 2013-03-01 | AD13: licenciement | AE13: lic convntionné | AF13: 1987-08-03 | AG13: =DATEDIF(AF13,TODAY(),"y")&" ans "&DATEDIF(AF13,TODAY(),"ym")&" mois "&DATEDIF(AF13,TODAY(),"md")&" jours " -> 25 ans 8 mois 29 jours | AH13: =(ROUNDUP((TODAY()-AF13)/365.25*4,0))/4 -> 25.75 | AI13: 36 | AJ13: 1988-01-03 | AP13: 2 | AQ13: 3500 | AR13: 1 | AS13: 3500 | AT13: 3500 | AU13: 150 | AV13: 0 | AW13: =IF(OR($A$5=3,$A$5=6,$A$5=9,$A$5=12),SUM(AS13,#REF!,AU13)/4,0) -> 0 | AX13: =IF(OR(H13="actif",H13=""),0,MAX((13*AH13*(SUM(AQ13,AU13))/60),(13*(SUM(AQ13,AU13))/4))) -> 0 | AY13: 4000 | AZ13: 4000 | BB13: =AY13*'charges sociales'!$C$84 -> 120 | BC13: =$AY13*'charges sociales'!D$84 -> 216 | BD13: =IF($AY13>trancheA,($AY13-trancheA)*'charges sociales'!E$84,0) -> 14.624 | BE13: =IF($AY13<trancheA,$AY13*'charges sociales'!F$84,trancheA*'charges sociales'!F$84) -> 259.224 | BF13: =IF(OR(N13=67000,N13=67010),$AY13*2%,IF(N13=68012,$AY13*1.8%,$AY13*0.6%)) -> 24 | BG13: =$AY13*'charges sociales'!H$84 -> 12 | BH13: =$AY13*'charges sociales'!I$84 -> 4 | BI13: =$AY13*'charges sociales'!J$84 -> 16 | BJ13: =IF(AY13>trancheA, trancheA*prévoyance1,AY13*prévoyance1) -> 52.95576 | BK13: =IF(AY13>trancheA,(AY13-trancheA)*prévoyance2,0) -> 20.73866 | BL13: =IF($AY13<12124,$AY13*'charges sociales'!M$84,'charges sociales'!M$84*12124) -> 160 | BM13: =IF($AY13<TrancheB,$AY13*'charges sociales'!N$84,'charges sociales'!N$84*TrancheB) -> 12 | BN13: =$AY13*'charges sociales'!O$84 -> 210 | BO13: =IF($AY13>trancheA, trancheA*retraite1,$AY13*retraite1) -> 37.032 | BP13: =IF($AY13>trancheA,(AY13-trancheA)*retraite2,0) -> 11.882 | BQ13: =$AY13*'charges sociales'!R$84 -> 8.8 | BR13: =$AY13*'charges sociales'!S$84 -> 1.44 | BS13: =$AY13*'charges sociales'!T$84 -> 7.2 | BT13: =$AY13*'charges sociales'!U$84 -> 10.4 | BU13: =$AY13*'charges sociales'!V$84 -> 64 | BV13: =$AY13*'charges sociales'!W$84 -> 18 | BW13: =SUM(BA13:BV13) -> 1280.29642 | BX13: =SUM(BW13,AY13) -> 5280.29642 | BY13: =AY13+BJ13+BK13 -> 4073.69442 | BZ13: =IF($BY13*12<'charges sociales'!AA$83,($BY13*'charges sociales'!AA$84),'charges sociales'!AA$83*'charges sociales'!AA$84) -> 26.93083333 | CA13: =IF($BY13*12>'charges sociales'!AB$83,('charges sociales'!AB$83-'charges sociales'!AA$83)*'charges sociales'!AB$84,IF(AND($BY13*12<'charges sociales'!AB$83,$BY13*12>'charges sociales'!AA$83),($BY13*12-'charges sociales'!AA$83)*'charges sociales'!AB$84,0)) -> 53.69875 | CB13: =IF(AND($BY13*12>'charges sociales'!$F$44,$BY13*12<'charges sociales'!$F$45),($BY13*12-'charges sociales'!$F$44)*taxe3/12,IF($BY13*12>'charges sociales'!$F$45,(('charges sociales'!$F$45-'charges sociales'!$F$44)*taxe3/12),0)) -> 381.9257745 | CC13: =IF($BY13*12>'charges sociales'!AD$83,($BY13*12-'charges sociales'!AC$83)*'charges sociales'!AD$84,('charges sociales'!AD$83-'charges sociales'!AC$83)*'charges sociales'!AD$84) -> 0 | CD13: =8%*SUM(BJ13:BK13) -> 5.8955536 | CE13: =SUM(BW13,BZ13:CD13) -> 1748.747331 | CF13: =SUM(CE13,AY13,CM13)-(CK13+CL13) -> 5488.747331 | CG13: =(AY13+BJ13+BK13)*0.97 -> 3951.483587 | CH13: -2715.55 | CI13: 0 | CJ13: 0 | CK13: 260

Sheet STATISTIQUES MENSUELLES
B2: Mois | C2: Budgété | D2: Realisé | E2: Ecart | F2: Reprévision
B3: Janvier | C3: =IF(Détails!$A$5=1,Détails!#REF!,0) ->  | E3: =C3-D3 -> 
B4: Février | C4: =IF(Détails!$A$5=2,Détails!#REF!,0) -> 0 | E4: =C4-D4 -> 0
B5: Mars | C5: =IF(Détails!$A$5=3,Détails!#REF!,0) -> 0 | E5: 0
B6: Avril | C6: =IF(Détails!A5=4,Détails!#REF!,0) -> 0 | E6: 0
B7: Mai | C7: =IF(Détails!$A$5=5,Détails!#REF!,0) -> 0 | E7: 0
B8: Juin | C8: =IF(Détails!$A$5=6,Détails!#REF!,0) -> 0 | E8: 0
B9: Juillet | C9: =IF(Détails!$A$5=7,Détails!#REF!,0) -> 0 | E9: 0
B10: Août | C10: =IF(Détails!A9=8,Détails!#REF!,0) -> 0 | E10: 0
B11: Septembre | C11: =IF(Détails!$A$5=9,Détails!#REF!,0) -> 0 | E11: 0
B12: Octobre | C12: =IF(Détails!$A$5=10,Détails!#REF!,0) -> 0 | E12: 0
B13: Novembre | C13: =IF(Détails!$A$5=11,Détails!#REF!,0) -> 0 | E13: 0
B14: Décembre | C14: =IF(Détails!$A$5=12,Détails!#REF!,0) -> 0 | E14: 0
B15: TOTAL n

Sheet entrée-sortie
A2: Entrants | B2: Nom | C2: prénom | D2: etp | E2: AIB | F2: Date d'entrée | G2: motif
B3: xxxx | C3: xxxx | D3: 1 | E3: 2532.36 | F3: 2013-05-12 | G3: recrutement
B4: yyyy | C4: yyyy | D4: 1 | E4: 25632 | F4: 2013-05-13 | G4: remplacement
A15: sortants | B15: Nom | C15: prénom | D15: etp | E15: AIB | F15: Date de sortie | G15: Motif
B16: xxxx | C16: xxxx | D16: 1 | E16: 2532.36 | F16: 2013-05-12 | G16: licenciement
B17: Nom_Usuel_172 | C17: Prénom_172 | D17: 1 | E17: 4000 | F17: 2013-01-31 | G17: retraite
